bitfinex-derivatives/quotes_ETHF0:USTF0_20250620
["timestamp","ask_amount","ask_price","bid_price","bid_amount"]
[1750408645293,0.77999,2563.9,2563.8,0.78]
[1750408645488,3.2078,2564.2,2564.1,0.77991]
[1750408645705,3.2078,2564.2,2564.1,3.82931386]
[1750408646203,6.481,2564.6,2564.5,0.77979]
[1750408646204,9.6888,2564.6,2564.5,0.77979]
[1750408646497,3.2078,2564.6,2564.5,3.82919386]
[1750408647495,0.77984,2564.4,2564.3,0.77983]
[1750408647796,2.0496,2564.5,2564.4,0.77982]
[1750408648110,0.77984,2564.4,2564.3,0.77983]
[1750408648304,1.2972,2564.4,2564.3,0.77983]
[1750408648498,2.07702,2564.4,2564.3,0.77983]
[1750408648701,1.2972,2564.4,2564.3,0.77983]
[1750408649508,1.2972,2564.4,2563.9,3.2078]
[1750408649509,0.77994,2564.0,2563.9,3.2078]
[1750408649704,0.77999,2563.9,2563.8,0.77997]
[1750408649898,2.07719,2563.9,2563.8,0.77997]
[1750408650598,1.2972,2563.9,2563.8,0.77997]
[1750408651803,1.41523,2564.1,2563.8,0.77997]
[1750408652001,2.77683,2564.1,2564.0,0.77994]
[1750408652193,9.24383,2564.1,2564.0,0.77994]
[1750408652600,8.4639,2564.1,2564.0,0.77994]
[1750408652908,1.3616,2564.1,2564.0,0.77994]
[1750408653203,0.77999,2563.9,2563.6,3.2078]
[1750408653408,0.78001,2563.8,2563.3,2.61148]
[1750408653596,1.3616,2563.8,2563.7,0.78003]
[1750408654109,3.2078,2564.0,2563.9,0.77997]
[1750408654303,9.6748,2564.0,2563.9,0.77997]
[1750408655004,3.2078,2564.0,2563.8,0.77997]
[1750408655307,0.77999,2563.9,2563.8,0.77997]
[1750408655510,7.2469,2564.2,2563.7,1.95007]
[1750408655815,0.77997,2564.0,2563.9,0.77996]
[1750408656296,3.2836,2564.1,2563.6,3.27713781]
[1750408656496,1.95005,2563.8,2563.3,0.6611]
[1750408656695,5.15802,2563.6,2563.0,0.6738]
[1750408656898,0.78021,2563.1,2563.0,1.45403]
[1750408657103,7.24621,2563.2,2563.1,0.7802]
[1750408657803,6.466,2563.2,2563.1,0.7802]
[1750408658005,7.24618,2563.2,2563.1,0.7802]
[1750408658303,6.466,2563.2,2563.1,0.7802]
[1750408658510,7.24618,2563.2,2563.1,0.7802]
[1750408659004,7.24618,2563.2,2563.0,0.78022]
[1750408659199,7.24618,2563.2,2563.0,0.78024]
[1750408659398,1.3595,2563.1,2563.0,0.78024]
[1750408659611,1.3595,2563.1,2562.9,3.98806]
[1750408659808,0.78024,2563.0,2562.8,0.78029]
[1750408660011,7.92483,2563.1,2562.9,0.78026]
[1750408660404,1.378,2563.0,2562.9,0.78026]
[1750408661501,1.378,2563.0,2562.7,0.6734]
[1750408661502,0.6467,2563.2,2563.1,0.78021]
[1750408661702,7.8939,2563.2,2563.0,0.78023]
[1750408661904,6.467,2563.2,2563.1,7.10866699]
[1750408662107,2.0674,2563.7,2563.2,1.95047]
[1750408662307,2.0674,2563.7,2563.6,0.78006]
[1750408662502,9.6748,2563.8,2563.7,0.78003]
[1750408664013,3.2078,2563.8,2563.7,0.78003]
[1750408664504,6.467,2563.9,2563.8,0.78]
[1750408665510,1.378,2564.0,2563.9,0.77997]
[1750408665715,0.78,2563.9,2563.8,0.77999]
[1750408665915,0.78,2563.8,2563.7,0.78001]
[1750408666107,7.8315,2563.8,2563.7,0.78001]
[1750408666412,8.6115,2563.8,2563.7,0.78001]
[1750408666608,0.78007,2563.7,2563.6,0.78005]
[1750408666807,1.3274,2563.7,2563.5,0.78007]
[1750408667014,0.78009,2563.6,2563.5,0.78007]
[1750408667407,0.78015,2563.3,2563.2,3.98795]
[1750408667615,7.24713,2563.4,2563.3,0.78015]
[1750408668115,8.57453,2563.4,2563.2,3.2078]
[1750408668310,7.7944,2563.4,2562.8,3.2078]
[1750408668513,0.78026,2563.0,2562.9,0.78024]
[1750408668817,0.78026,2563.0,2562.8,3.2078]
[1750408668818,0.78024,2563.1,2563.0,0.78023]
[1750408669013,0.7802,2563.2,2563.1,0.7802]
[1750408669322,6.467,2563.2,2563.1,0.7802]
[1750408669815,1.2481,2563.2,2563.1,0.7802]
[1750408670018,1.44071,2563.5,2563.4,0.78012]
[1750408670220,7.90771,2563.5,2563.4,0.78012]
[1750408671208,7.90769,2563.5,2563.4,0.78012]
[1750408671410,7.1276,2563.5,2563.4,0.78012]
[1750408672018,0.6606,2563.5,2563.4,0.78012]
[1750408672321,1.2481,2563.6,2563.5,0.78009]
[1750408672712,8.49516,2563.6,2563.5,0.78009]
[1750408673316,2.02816,2563.6,2563.5,0.78009]
[1750408673509,7.7151,2563.6,2563.5,0.78009]
[1750408674326,3.8365,2563.7,2563.6,0.78006]
[1750408674726,9.6748,2563.7,2563.6,0.78006]
[1750408678129,10.45483,2563.7,2563.6,0.78006]
[1750408678537,0.78006,2563.6,2563.5,0.6312]
[1750408678838,0.78011,2563.5,2563.4,0.78009]
[1750408679535,0.78016,2563.4,2563.3,0.78013]
[1750408680134,0.78011,2563.5,2563.4,0.78009]
[1750408680336,2.06481,2563.5,2563.4,0.78009]
[1750408680737,2.06479,2563.5,2563.4,0.78009]
[1750408681237,1.2847,2563.5,2563.4,0.78009]
[1750408681838,0.78014,2563.4,2563.3,0.78012]
[1750408682240,1.3244,2563.4,2563.3,0.78012]
[1750408682741,2.10452,2563.4,2563.3,0.78012]
[1750408684038,0.78017,2563.3,2563.2,0.78015]
[1750408684242,8.42,2563.3,2563.2,0.78015]
[1750408684440,7.0956,2563.3,2563.2,0.78015]
[1750408684736,6.459,2563.3,2563.2,0.78015]
[1750408685636,2.74109,2563.6,2563.5,0.78009]
[1750408685935,3.2078,2563.7,2563.6,0.78006]
[1750408686243,3.2078,2563.7,2563.6,7.10851699]
[1750408687645,3.98783,2563.7,2563.6,0.78006]
[1750408687839,5.36213,2563.7,2563.6,0.78006]
[1750408688240,3.2078,2563.7,2563.6,0.78006]
[1750408692446,7.23902,2563.8,2563.7,0.78003]
[1750408692743,9.59169434,2563.8,2563.7,0.78003]
[1750408693137,8.59172,2563.8,2563.7,0.78003]
[1750408693444,8.5917,2563.8,2563.7,0.78003]
[1750408694248,7.8117,2563.8,2563.7,0.78003]
[1750408694546,8.5917,2563.8,2563.7,0.78003]
[1750408695044,6.459,2563.8,2563.7,3.82274384]
[1750408695650,27.5388,2564.0,2563.9,0.77997]
[1750408695651,3.98776,2564.0,2563.9,0.77997]
[1750408695946,11.44607881,2564.0,2563.9,3.82268384]
[1750408696749,0.78,2563.9,2563.8,0.77998]
[1750408696949,0.78003,2563.8,2563.7,0.78001]
[1750408697342,10.33477211,2563.8,2562.8,6.25416077]
[1750408697543,0.78027,2563.0,2562.9,0.78024]
[1750408697743,6.459,2563.0,2562.9,0.78024]
[1750408697943,7.23924,2563.0,2562.9,0.78024]
[1750408698142,8.53194,2563.0,2562.9,0.78024]
[1750408699045,7.7517,2563.0,2562.9,0.78024]
[1750408699551,7.7517,2563.0,2562.8,0.78029]
[1750408699752,0.78031,2562.9,2562.8,0.78029]
[1750408699949,1.3785,2562.9,2562.8,0.78029]
[1750408700142,1.3429,2563.2,2563.1,0.78021]
[1750408700343,2.7214,2563.2,2563.1,0.78021]
[1750408700648,9.1804,2563.2,2562.7,8.92713154]
[1750408700952,0.78026,2563.0,2562.9,0.78025]
[1750408701548,0.78029,2562.9,2562.8,0.78028]
[1750408701742,0.78027,2563.0,2562.9,0.78026]
[1750408702548,0.78024,2563.1,2563.0,0.78022]
[1750408702946,0.78026,2563.0,2562.9,0.78026]
[1750408704249,7.8019,2563.2,2562.7,6.33320154]
[1750408704453,7.8019,2563.2,2562.1,1.41341]
[1750408704454,0.78049,2562.2,2562.1,1.41341]
[1750408704754,6.46,2562.3,2562.2,0.78046]
[1750408704947,3.2078,2562.5,2562.3,0.78044]
[1750408705147,7.24046,2562.4,2562.3,0.78044]
[1750408705550,0.6918,2562.7,2562.3,6.33320154]
[1750408705755,3.98811,2562.8,2562.7,0.78034]
[1750408706446,3.2078,2562.8,2562.4,0.6633]
[1750408706648,3.2078,2562.8,2562.4,0.7804]
[1750408706649,0.7804,2562.5,2562.4,0.7804]
[1750408706845,7.2404,2562.5,2562.4,0.7804]
[1750408709361,0.78046,2562.4,2562.3,0.78044]
[1750408710761,0.78039,2562.6,2562.5,0.78036]
[1750408711453,3.98815,2562.8,2562.7,0.78034]
[1750408711653,10.43715,2562.8,2562.7,0.78034]
[1750408713559,0.78034,2562.7,2562.6,1.47224]
[1750408714660,7.23034,2562.7,2562.6,1.47224]
[1750408718456,7.23034,2562.7,2562.6,0.6919]
[1750408718764,0.78046,2562.3,2562.2,3.2078]
[1750408718960,0.78046,2562.3,2562.2,0.78046]
[1750408720959,0.78045,2562.4,2562.3,0.78043]
[1750408721163,0.78043,2562.4,2562.3,0.78043]
[1750408721363,0.6444,2562.5,2562.4,0.78043]
[1750408722162,1.42482,2562.5,2562.4,0.78043]
[1750408722863,0.78043,2562.4,2562.3,0.78046]
[1750408725270,1.42482,2562.5,2562.4,0.78043]
[1750408725973,0.6444,2562.5,2562.4,0.78043]
[1750408726268,6.45,2562.5,2562.4,7.11363154]
[1750408726468,0.78037,2562.6,2562.5,0.7804]
[1750408726668,0.78037,2562.6,2562.5,1.4442]
[1750408728268,0.78044,2562.5,2562.4,0.78039]
[1750408730569,0.78043,2562.4,2562.3,1.42313]
[1750408730770,2.07153,2562.4,2562.3,0.78043]
[1750408730966,7.1213,2562.7,2562.2,6.33320154]
[1750408731172,2.58154,2563.0,2562.6,3.2078]
[1750408731370,0.78034,2562.8,2562.7,0.78031]
[1750408731673,1.782456,2562.8,2562.7,0.78031]
[1750408735073,1.002116,2562.8,2562.7,0.78031]
[1750408735576,4.209916,2562.8,2562.3,11.49213154]
[1750408735878,0.78042,2562.6,2562.5,0.78036]
[1750408736078,1.782536,2562.6,2562.5,0.78036]
[1750408736677,0.78043,2562.5,2562.4,0.78041]
[1750408736880,8.59393,2562.5,2562.4,0.78041]
[1750408737176,0.78048,2562.4,2562.3,0.78044]
[1750408737368,2.14398,2562.4,2562.3,0.78044]
[1750408738078,2.14398,2562.4,2562.1,0.6329]
[1750408738079,0.78049,2562.2,2562.1,1.41338]
[1750408738283,0.78049,2562.2,2562.1,0.78048]
[1750408738674,2.14399,2562.2,2562.1,0.78048]
[1750408740376,8.59399,2562.2,2562.1,0.78048]
[1750408740574,7.8135,2562.2,2562.1,0.78048]
[1750408740973,1.3635,2562.2,2562.1,0.78048]
[1750408741272,7.8135,2562.2,2562.1,0.78048]
[1750408741474,8.59399,2562.2,2562.1,0.78048]
[1750408744978,0.78061,2561.8,2561.7,0.6611]
[1750408745277,0.7807,2561.6,2561.5,1.42387]
[1750408745876,1.44376,2561.7,2561.6,0.78067]
[1750408746080,0.78067,2561.6,2561.5,0.7807]
[1750408746381,0.7807,2561.5,2561.4,4.61591]
[1750408747079,0.78069,2561.6,2561.5,0.78067]
[1750408747278,0.78054,2562.1,2561.6,0.78067]
[1750408747486,8.21911214,2562.0,2561.9,3.82887967]
[1750408747677,8.21911214,2562.0,2561.9,0.78058]
[1750408747879,8.21902323,2562.0,2561.9,0.78058]
[1750408748077,0.7806,2561.9,2561.8,0.78059]
[1750408748276,0.78064,2561.8,2561.7,0.78063]
[1750408748484,0.78064,2561.7,2561.6,1.40985]
[1750408748777,2.79284,2561.7,2561.6,1.40985]
[1750408749289,0.7807,2561.6,2561.5,0.78068]
[1750408749593,2.135,2561.6,2561.5,0.78068]
[1750408749883,8.571,2561.6,2561.5,0.78068]
[1750408750587,10.9981,2561.6,2561.1,3.8596]
[1750408750887,0.78079,2561.3,2561.1,3.8596]
[1750408751079,0.78075,2561.4,2561.1,3.2078]
[1750408751379,0.78075,2561.4,2561.3,0.78073]
[1750408752979,1.43913,2561.5,2561.4,0.78073]
[1750408753488,0.78076,2561.4,2561.1,5.15986]
[1750408753690,0.78076,2561.4,2561.3,0.78074]
[1750408753883,0.78079,2561.3,2561.2,0.78077]
[1750408754184,1.44179,2561.3,2561.2,0.78077]
[1750408754491,32.17579,2561.3,2561.2,0.78077]
[1750408754988,0.78079,2561.2,2561.1,3.2078]
[1750408755289,0.78079,2561.2,2561.1,3.98862]
[1750408755582,0.78085,2561.0,2560.9,1.45494]
[1750408755787,0.78084,2561.1,2561.0,0.78081]
[1750408755986,0.78092,2560.9,2560.8,0.78089]
[1750408756192,7.21792,2560.9,2560.8,0.78089]
[1750408757081,6.437,2560.9,2560.8,0.78089]
[1750408757476,6.437,2561.2,2561.0,1.95214]
[1750408757677,7.21779,2561.2,2561.1,0.78082]
[1750408758986,0.78082,2561.1,2561.0,0.78085]
[1750408759184,1.45822,2561.1,2561.0,0.78085]
[1750408759492,1.45822,2561.1,2560.7,12.79113686]
[1750408759493,0.78092,2560.9,2560.8,0.78089]
[1750408759987,0.78088,2561.0,2560.9,0.78085]
[1750408760191,0.78092,2560.8,2560.7,2.07212]
[1750408760490,7.21892,2560.8,2560.7,0.78095]
[1750408760684,7.21892,2560.8,2560.5,0.78099]
[1750408760685,0.78101,2560.6,2560.5,0.78099]
[1750408760881,0.78101,2560.5,2560.4,3.98882]
[1750408761479,0.78113,2560.2,2560.1,0.7811]
[1750408761687,0.78113,2560.1,2560.0,3.2078]
[1750408762087,0.78113,2560.1,2559.3,7.7474]
[1750408762088,6.95286,2560.1,2559.2,3.2078]
[1750408762397,0.7813,2559.6,2559.5,0.78129]
[1750408762593,7.2193,2559.6,2559.5,0.78129]
[1750408762786,0.78133,2559.5,2559.4,0.78133]
[1750408762981,6.438,2559.6,2559.5,0.78131]
[1750408763691,7.21928,2559.6,2559.5,0.78131]
[1750408763994,7.21928,2559.6,2559.2,1.3094]
[1750408764186,6.438,2559.6,2559.5,0.78131]
[1750408764896,6.438,2559.6,2559.2,6.33977686]
[1750408765086,6.438,2559.6,2559.5,0.78131]
[1750408765993,0.7814,2559.3,2559.2,0.7814]
[1750408766183,0.78141,2559.2,2559.1,0.78142]
[1750408766390,3.2078,2559.4,2559.0,1.2867]
[1750408766589,6.439,2559.3,2559.2,0.78138]
[1750408766796,6.439,2559.3,2559.0,1.2867]
[1750408766986,0.7814,2559.2,2559.0,2.06816]
[1750408767185,6.439,2559.3,2559.0,2.06816]
[1750408767186,7.7176,2559.3,2559.0,1.2867]
[1750408767393,6.44,2559.2,2559.1,0.78143]
[1750408768495,6.44,2559.2,2558.4,5.16188]
[1750408768685,3.2078,2559.0,2558.9,0.78149]
[1750408769093,3.98927,2559.0,2558.9,0.78149]
[1750408769391,3.2078,2559.0,2558.9,0.78149]
[1750408773997,0.78154,2558.8,2558.7,0.78154]
[1750408774193,6.429,2558.8,2558.7,0.78156]
[1750408775400,3.2078,2559.0,2558.9,0.7815]
[1750408776201,3.8349,2559.3,2559.2,0.7814]
[1750408776499,10.2649,2559.3,2559.2,0.7814]
[1750408776998,1.44031,2559.6,2559.2,0.7814]
[1750408776999,3.2078,2559.6,2559.5,0.78131]
[1750408777194,3.2078,2559.6,2559.5,7.12108686]
[1750408777391,6.43,2560.0,2559.5,13.36057686]
[1750408777392,3.2078,2560.0,2559.5,13.36057686]
[1750408777597,3.2078,2560.8,2560.1,1.95278]
[1750408777901,3.98882,2560.5,2560.2,0.6734]
[1750408778100,3.2078,2560.5,2560.3,0.78105]
[1750408778402,3.98883,2560.5,2560.3,0.78105]
[1750408778607,0.78104,2560.4,2560.3,0.78105]
[1750408778802,0.78104,2560.4,2559.5,3.2078]
[1750408778803,14.72238686,2560.4,2559.5,3.2078]
[1750408779102,0.78117,2560.0,2559.7,0.78122]
[1750408779301,7.21017,2560.0,2559.7,0.78122]
[1750408779804,8.46257,2560.0,2559.7,0.78123]
[1750408780102,3.2078,2560.2,2559.8,3.2078]
[1750408780302,0.78115,2560.1,2559.9,0.78118]
[1750408780511,3.8659,2560.5,2559.8,9.54757686]
[1750408780797,8.3811,2561.1,2560.3,9.54757686]
[1750408780996,8.3811,2561.1,2560.6,3.2078]
[1750408780997,0.78095,2560.7,2560.6,3.2078]
[1750408781196,0.78099,2560.6,2560.4,1.2693]
[1750408781402,0.78099,2560.6,2560.5,3.2078]
[1750408782198,1.95253,2560.6,2560.1,3.9889]
[1750408782399,0.7811,2560.2,2560.1,3.9889]
[1750408782906,7.21009,2560.3,2560.2,0.7811]
[1750408783205,7.21009,2560.3,2560.1,3.2078]
[1750408783206,30.94,2560.3,2560.1,3.2078]
[1750408783405,30.94,2560.3,2560.2,0.7811]
[1750408783406,6.429,2560.3,2560.2,0.7811]
[1750408783599,0.78098,2560.6,2560.1,9.54757686]
[1750408783903,7.20996,2560.7,2560.6,0.78098]
[1750408784104,7.20996,2560.7,2560.5,3.98879]
[1750408784305,0.78098,2560.6,2560.5,3.98879]
[1750408784802,0.78098,2560.6,2560.5,3.9888]
[1750408785108,0.78098,2560.6,2560.5,3.2078]
[1750408785407,2.08688,2560.6,2560.5,3.2078]
[1750408785807,2.08688,2560.6,2560.5,3.98881]
[1750408786202,2.08688,2560.6,2560.5,3.2078]
[1750408786903,0.78103,2560.5,2560.4,0.78102]
[1750408787506,2.0869,2560.6,2560.5,0.78101]
[1750408788106,1.3059,2560.6,2560.2,3.2078]
[1750408788310,0.78106,2560.4,2560.3,0.78105]
[1750408789000,0.78107,2560.3,2560.2,3.2078]
[1750408789400,7.20907,2560.3,2560.2,3.2078]
[1750408789903,8.55197,2560.3,2560.2,3.2078]
[1750408790204,9.90647,2560.3,2560.2,3.9889]
[1750408793110,9.90647,2560.3,2560.2,3.2078]
[1750408793709,9.90647,2560.3,2560.2,3.9889]
[1750408793909,9.1254,2560.3,2560.2,3.9889]
[1750408794218,9.90647,2560.3,2560.2,3.9889]
[1750408794416,1.3545,2560.3,2560.2,3.9889]
[1750408794630,0.78103,2560.5,2560.4,0.78104]
[1750408794820,25.21907,2560.4,2560.3,0.78105]
[1750408795122,26.51357,2560.4,2560.3,0.78105]
[1750408796919,7.20904,2560.4,2560.3,0.78105]
[1750408797121,6.428,2560.4,2560.3,0.78105]
[1750408797416,7.7225,2560.4,2560.3,0.78105]
[1750408798512,1.3211,2560.7,2560.5,0.78098]
[1750408798820,30.843,2560.6,2560.5,0.78098]
[1750408799019,32.91161,2560.6,2560.5,0.78098]
[1750408801221,32.1306,2560.6,2560.5,0.78098]
[1750408801417,1.3211,2560.7,2560.6,0.78098]
[1750408801623,30.822,2560.7,2560.6,0.78098]
[1750408801819,3.28462,2561.0,2560.5,5.16029]
[1750408801820,1.3324,2561.0,2560.5,5.16029]
[1750408802016,0.78095,2560.8,2560.7,0.78092]
[1750408802417,0.78098,2560.6,2560.5,3.9888]
[1750408802615,0.78096,2560.7,2560.6,0.78095]
[1750408802815,2.11336,2560.7,2560.6,0.78095]
[1750408803016,2.76456,2560.7,2560.6,0.78098]
[1750408803315,0.78098,2560.6,2560.5,3.98879]
[1750408803710,2.14178,2560.6,2560.5,3.98879]
[1750408804620,26.52078,2560.6,2560.5,3.98879]
[1750408805326,0.78107,2560.4,2560.2,3.2078]
[1750408805624,0.78107,2560.4,2560.3,0.78104]
[1750408805826,7.25303,2560.5,2560.4,0.78104]
[1750408806326,7.25303,2560.5,2560.3,0.78105]
[1750408806327,0.78107,2560.4,2560.3,0.78105]
[1750408806528,7.25303,2560.5,2560.4,0.78104]
[1750408806821,6.472,2560.5,2560.4,0.78104]
[1750408808125,7.25301,2560.5,2560.4,0.78104]
[1750408808826,7.25303,2560.5,2560.4,0.78104]
[1750408809424,0.78107,2560.3,2560.2,3.9889]
[1750408810527,0.78106,2560.4,2560.3,0.78104]
[1750408810717,1.79429014,2560.4,2560.3,0.78104]
[1750408812731,1.79429014,2560.4,2560.2,3.98888]
[1750408812732,0.78107,2560.3,2560.2,3.98888]
[1750408812931,25.09907,2560.3,2560.2,3.98888]
[1750408813127,26.11246552,2560.3,2560.2,3.2078]
[1750408813331,26.11243265,2560.3,2560.2,3.9889]
[1750408813524,1.01336265,2560.3,2560.2,3.9889]
[1750408813725,30.785,2560.3,2560.2,3.9889]
[1750408814224,30.788,2560.3,2560.2,3.9889]
[1750408814733,31.56907,2560.3,2560.2,3.9889]
[1750408815034,32.58263332,2560.3,2560.2,3.9889]
[1750408816334,32.58263332,2560.3,2560.2,3.2078]
[1750408817327,0.78122,2559.9,2559.8,3.2078]
[1750408817538,0.78128,2559.7,2559.6,0.78125]
[1750408817824,25.09228,2559.7,2559.6,0.78125]
[1750408818930,24.311,2559.7,2559.6,0.78125]
[1750408819331,0.78124,2559.8,2559.7,0.78125]
[1750408819634,31.56424,2559.8,2559.7,0.78125]
[1750408820323,0.78127,2559.7,2559.6,0.78126]
[1750408820521,0.78128,2559.6,2559.5,1.44559]
[1750408820724,0.78127,2559.7,2559.6,0.78126]
[1750408821337,0.78128,2559.6,2559.5,1.44559]
[1750408821636,0.78128,2559.6,2559.5,0.6643]
[1750408821826,0.78142,2559.2,2559.1,0.78141]
[1750408822025,25.09242,2559.2,2559.1,0.78141]
[1750408822335,0.78144,2559.1,2559.0,3.2078]
[1750408822737,24.997,2559.2,2558.7,3.8649]
[1750408823033,0.78153,2558.8,2558.7,3.8649]
[1750408823238,0.78153,2558.8,2558.7,3.2078]
[1750408823740,0.78162,2558.5,2558.4,0.6571]
[1750408824033,24.313,2558.5,2558.4,1.43875]
[1750408824237,31.56762,2558.5,2558.4,1.43875]
[1750408824533,30.786,2558.5,2558.4,1.43875]
[1750408824734,31.56762,2558.5,2558.4,1.43875]
[1750408825331,31.56762,2558.5,2558.4,0.6571]
[1750408825531,30.786,2558.5,2558.4,1.43875]
[1750408825931,2.16377,2558.7,2558.4,0.6571]
[1750408826131,30.789,2558.6,2558.4,0.6571]
[1750408826331,30.789,2558.6,2558.5,0.78162]
[1750408826537,0.78159,2558.6,2558.5,0.78162]
[1750408826736,30.789,2558.6,2558.5,0.78162]
[1750408827037,31.57059,2558.6,2558.5,0.78162]
[1750408827237,0.78162,2558.5,2558.4,1.43873]
[1750408827437,31.57061,2558.6,2558.5,0.78162]
[1750408828339,30.789,2558.6,2558.5,0.78162]
[1750408828843,0.78156,2558.7,2558.6,0.78159]
[1750408829039,30.793,2558.7,2558.6,0.78159]
[1750408829237,31.57456,2558.7,2558.6,0.78159]
[1750408829438,30.793,2558.7,2558.6,0.78159]
[1750408829742,4.67111,2558.9,2558.4,2.61119]
[1750408830034,31.57453,2558.8,2558.4,0.6571]
[1750408830339,31.57454,2558.8,2558.7,0.78156]
[1750408830539,30.793,2558.8,2558.7,0.78156]
[1750408830944,3.98932,2558.9,2558.8,0.78153]
[1750408831132,34.78232,2558.9,2558.8,0.78153]
[1750408831635,34.78532,2558.9,2558.8,0.78153]
[1750408831934,0.78154,2558.8,2558.7,0.78154]
[1750408832832,34.0038,2558.9,2558.4,0.6571]
[1750408833033,0.7816,2558.6,2558.5,0.78159]
[1750408833235,25.10361,2558.6,2558.4,0.6571]
[1750408833436,25.10361,2558.6,2558.5,0.78162]
[1750408834242,24.322,2558.6,2558.5,0.78162]
[1750408834545,25.10359,2558.6,2558.5,0.78162]
[1750408836237,24.322,2558.6,2558.5,0.78162]
[1750408836640,25.10359,2558.6,2558.5,0.78162]
[1750408837442,0.78162,2558.5,2558.4,1.43873]
[1750408838539,25.10361,2558.6,2558.5,0.78162]
[1750408839656,0.78162,2558.5,2558.4,1.43873]
[1750408840646,6.436,2558.5,2558.4,0.78163]
[1750408840839,6.436,2558.5,2558.4,2.15013]
[1750408842044,3.98933,2558.9,2558.8,0.78153]
[1750408842244,34.74633,2558.9,2558.8,0.78153]
[1750408842947,31.53753,2558.9,2558.8,0.78153]
[1750408843543,0.78157,2558.8,2558.7,0.78154]
[1750408845142,0.78143,2559.2,2559.1,0.78141]
[1750408845341,31.53943,2559.2,2559.1,0.78141]
[1750408845542,0.78149,2559.1,2559.0,0.78145]
[1750408846451,25.10149,2559.1,2559.0,0.78145]
[1750408847345,25.10149,2559.1,2558.8,0.6519]
[1750408847648,0.7815,2558.9,2558.8,0.6519]
[1750408847852,25.1015,2558.9,2558.8,0.6519]
[1750408848046,26.4807,2558.9,2558.8,0.6519]
[1750408848850,26.4807,2558.9,2558.8,1.43343]
[1750408849437,26.4807,2558.9,2558.8,0.6519]
[1750408849941,26.4807,2558.9,2558.8,1.43343]
[1750408850753,0.78156,2558.7,2558.6,3.2078]
[1750408850951,0.78156,2558.7,2558.4,0.6909]
[1750408850952,0.78162,2558.5,2558.4,0.6909]
[1750408851248,0.78165,2558.4,2558.3,3.8532]
[1750408851448,2.12035,2558.4,2558.3,3.2078]
[1750408851657,1.95436,2558.2,2557.8,0.78182]
[1750408851844,0.78183,2557.9,2557.8,0.78182]
[1750408852044,32.87345,2558.1,2558.0,0.78177]
[1750408852642,32.0917,2558.1,2558.0,0.78177]
[1750408852845,3.2078,2558.4,2558.0,0.78177]
[1750408853041,30.753,2558.3,2558.2,0.78171]
[1750408853242,0.78175,2558.1,2558.0,0.78175]
[1750408853656,25.09875,2558.1,2558.0,0.78175]
[1750408853845,26.37965,2558.1,2558.0,0.78175]
[1750408854040,0.78177,2558.0,2557.9,0.78178]
[1750408854247,1.2809,2558.0,2557.9,0.78178]
[1750408855044,3.98946,2558.4,2558.3,0.78168]
[1750408855245,35.78638636,2558.4,2558.3,0.78168]
[1750408855444,0.78169,2558.3,2558.2,0.78169]
[1750408855845,1.3216,2558.3,2558.2,0.78169]
[1750408856245,2.10328,2558.3,2558.2,0.78169]
[1750408856855,1.3216,2558.3,2558.2,0.78169]
[1750408858554,30.755,2558.4,2558.3,0.78168]
[1750408858750,31.79775215,2558.4,2558.3,0.78168]
[1750408858952,30.756,2558.4,2558.3,0.78168]
[1750408859557,2.12363,2558.5,2558.4,0.78165]
[1750408859749,32.57925815,2558.5,2558.4,0.78165]
[1750408859944,1.04262815,2558.5,2558.4,0.78165]
[1750408860152,2.11688,2558.7,2558.3,5.16199]
[1750408860353,2.11688,2558.7,2558.6,0.78159]
[1750408860552,9.59739621,2558.7,2558.6,0.78159]
[1750408860853,30.756,2558.7,2558.5,0.7816]
[1750408861053,30.756,2558.7,2558.3,3.2078]
[1750408861054,0.78168,2558.4,2558.3,0.78164]
[1750408861652,0.78174,2558.1,2558.0,0.78174]
[1750408861954,25.09974,2558.1,2558.0,0.78174]
[1750408862651,24.318,2558.1,2558.0,3.98954]
[1750408863644,3.2078,2558.5,2558.4,0.78165]
[1750408864356,3.98942,2558.5,2558.4,0.78165]
[1750408864561,4.4757,2558.5,2558.4,0.78165]
[1750408864859,3.2078,2558.5,2558.4,0.78165]
[1750408865556,3.98942,2558.5,2558.4,0.78165]
[1750408865758,3.2078,2558.5,2558.4,0.78165]
[1750408866259,3.98942,2558.5,2558.4,0.78165]
[1750408866953,0.78169,2558.4,2558.3,0.78166]
[1750408867260,8.48159,2558.4,2558.3,0.78166]
[1750408867461,0.78171,2558.3,2558.2,0.78169]
[1750408867654,2.06521,2558.3,2558.2,0.78169]
[1750408868659,0.78174,2558.2,2558.1,0.78172]
[1750408868861,0.78174,2558.2,2558.0,0.651]
[1750408868862,0.78174,2558.1,2558.0,1.43275]
[1750408869247,2.06523,2558.2,2558.1,0.78174]
[1750408869853,1.2835,2558.2,2558.1,0.78174]
[1750408870156,0.6923,2558.4,2558.3,0.78168]
[1750408870353,6.432,2558.4,2558.3,0.78168]
[1750408870962,7.21365,2558.4,2558.3,0.78168]
[1750408871454,8.58055,2558.4,2558.3,0.78168]
[1750408873851,32.1139,2558.4,2558.3,0.78168]
[1750408874161,32.89555,2558.4,2558.3,0.78168]
[1750408875461,0.78174,2558.2,2558.1,0.78171]
[1750408876156,0.78177,2558.1,2558.0,0.78175]
[1750408876361,25.09677,2558.1,2558.0,0.78175]
[1750408877065,0.78182,2557.9,2557.8,0.78181]